bitfinex/quotes_SOLUSD_20250611
["timestamp","ask_amount","ask_price","bid_price","bid_amount"]
[1749639045115,0.14216157,164.47,164.42,9.09157515]
[1749639045422,0.14216157,164.47,164.43,4.55818165]
[1749639045616,0.14216157,164.47,164.44,4.55817363]
[1749639045826,0.14216157,164.47,164.39,1.5197]
[1749639046137,0.14216157,164.47,164.4,4.53140003]
[1749639046450,0.14216157,164.47,164.41,4.53140003]
[1749639046647,0.14216157,164.47,164.42,4.53140003]
[1749639046950,0.14216157,164.47,164.39,1.5197]
[1749639047450,69.50964886,164.48,164.39,1.5197]
[1749639049519,0.14216157,164.47,164.39,1.5197]
[1749639056045,0.14216157,164.47,164.34,5.67150377]
[1749639056046,0.14216157,164.47,164.35,1.6048]
[1749639056249,44.79181043,164.43,164.35,1.6048]
[1749639056453,18.64964886,164.41,164.35,1.6048]
[1749639058151,0.14216157,164.4,164.35,1.6048]
[1749639059059,26.0,164.38,164.3,1.5257]
[1749639059260,50.86,164.38,164.3,1.5257]
[1749639059759,18.64964886,164.37,164.3,1.5257]
[1749639059934,0.14216157,164.36,164.3,1.5257]
[1749639060545,26.0,164.34,164.3,1.5257]
[1749639062250,18.79181043,164.33,164.26,1.5003]
[1749639062456,24.13181043,164.33,164.26,1.5003]
[1749639064543,23.98964886,164.33,164.26,1.5003]
[1749639066946,5.36,164.35,164.26,1.5003]
[1749639069180,5.36,164.35,164.27,0.14216157]
[1749639069553,5.36,164.35,164.26,1.5003]
[1749639075874,18.64964886,164.34,164.26,1.5003]
[1749639080179,0.14216157,164.33,164.26,1.5003]
[1749639081178,0.14216157,164.33,164.27,4.50969725]
[1749639081396,0.14216157,164.33,164.26,1.5003]
[1749639082488,0.14216157,164.33,164.27,4.50973012]
[1749639082693,0.14216157,164.33,164.26,1.5003]
[1749639082894,0.14216157,164.33,164.27,4.50972269]
[1749639083087,0.14216157,164.33,164.26,1.5003]
[1749639083599,0.14216157,164.33,164.27,4.50972269]
[1749639083899,0.14216157,164.33,164.26,1.5003]
[1749639084274,0.14216157,164.33,164.27,4.50983394]
[1749639084477,0.14216157,164.33,164.26,1.5003]
[1749639084677,18.64964886,164.34,164.27,4.50984136]
[1749639084882,18.64964886,164.34,164.26,1.5003]
[1749639085082,18.64964886,164.34,164.27,4.50961079]
[1749639085282,18.64964886,164.34,164.26,1.5003]
[1749639085497,18.64964886,164.34,164.27,4.50961079]
[1749639085690,18.64964886,164.34,164.26,1.5003]
[1749639085886,18.64964886,164.34,164.27,4.50961079]
[1749639086084,18.64964886,164.34,164.26,1.5003]
[1749639086488,18.64964886,164.34,164.27,4.50961079]
[1749639086707,18.64964886,164.34,164.28,4.50960285]
[1749639086877,18.64964886,164.34,164.26,1.5003]
[1749639087080,18.64964886,164.34,164.27,4.50960234]
[1749639087296,18.64964886,164.34,164.28,4.50960234]
[1749639087500,18.64964886,164.34,164.26,1.5003]
[1749639087800,18.64964886,164.34,164.27,4.50959594]
[1749639087984,26.0,164.31,164.26,1.5003]
[1749639088876,18.64964886,164.3,164.26,1.5003]
[1749639089182,18.79181043,164.3,164.22,1.6094]
[1749639089381,18.79181043,164.3,164.23,4.51033583]
[1749639089683,18.79181043,164.3,164.22,1.6094]
[1749639091502,18.79181043,164.3,164.23,4.51042074]
[1749639091681,18.79181043,164.3,164.22,1.6094]
[1749639091883,18.79181043,164.3,164.23,4.51042023]
[1749639092087,18.79181043,164.3,164.24,4.51042023]
[1749639092301,18.79181043,164.3,164.22,1.6094]
[1749639092600,18.79181043,164.3,164.23,4.51069139]
[1749639092789,18.79181043,164.3,164.24,4.51069139]
[1749639092990,18.79181043,164.3,164.22,1.6094]
[1749639093181,18.79181043,164.3,164.23,4.51069149]
[1749639093381,18.79181043,164.3,164.24,4.51069249]
[1749639093696,18.79181043,164.3,164.22,1.6094]
[1749639094076,18.79181043,164.3,164.23,4.51083704]
[1749639094287,18.79181043,164.3,164.22,1.6094]
[1749639094489,18.79181043,164.3,164.23,4.51084889]
[1749639094696,18.79181043,164.3,164.22,1.6094]
[1749639095083,26.0,164.27,164.23,4.51086144]
[1749639095285,26.0,164.27,164.22,1.6094]
[1749639096985,26.0,164.27,164.18,5.61355658]
[1749639096986,18.64964886,164.25,164.18,1.6364]
[1749639099406,18.64964886,164.25,164.19,4.53212674]
[1749639099596,18.64964886,164.25,164.2,4.53212623]
[1749639099799,18.64964886,164.25,164.18,1.6364]
[1749639099800,0.14216157,164.24,164.18,1.6364]
[1749639100008,0.14216157,164.24,164.19,4.53217953]
[1749639100212,0.14216157,164.24,164.2,4.53217902]
[1749639100386,18.64964886,164.25,164.21,4.5321077]
[1749639100711,18.79181043,164.26,164.22,4.53153079]
[1749639100890,18.79181043,164.26,164.18,1.6364]
[1749639101095,24.13181043,164.26,164.19,4.53181603]
[1749639101294,18.64964886,164.26,164.2,4.53180805]
[1749639101601,18.64964886,164.26,164.18,1.6364]
[1749639101602,23.98964886,164.26,164.21,4.53174781]
[1749639101803,23.98964886,164.26,164.22,4.53145273]
[1749639102015,23.98964886,164.26,164.18,1.6364]
[1749639102204,23.98964886,164.26,164.19,4.53170306]
[1749639102406,23.98964886,164.26,164.2,4.53176432]
[1749639102709,23.98964886,164.26,164.18,1.6364]
[1749639103084,23.98964886,164.26,164.19,4.53162074]
[1749639103288,23.98964886,164.26,164.2,4.53162074]
[1749639103604,23.98964886,164.26,164.21,4.5316063]
[1749639103810,23.98964886,164.26,164.22,4.53160579]
[1749639104108,26.0,164.24,164.18,1.6364]
[1749639104297,26.0,164.24,164.19,4.53151905]
[1749639104502,26.0,164.24,164.2,4.53135832]
[1749639104700,5.34,164.29,164.21,4.53131083]
[1749639104903,5.34,164.29,164.22,4.53088597]
[1749639104904,31.34,164.29,164.22,4.53088597]
[1749639105105,31.34,164.29,164.23,4.530886]
[1749639105407,31.34,164.29,164.24,4.53088241]
[1749639105604,31.34,164.29,164.25,4.53086697]
[1749639105782,31.34,164.29,164.19,5.66268909]
[1749639107997,31.34,164.29,164.2,4.53075422]
[1749639108314,31.34,164.29,164.21,4.53075371]
[1749639108514,31.34,164.29,164.22,4.5307532]
[1749639108716,31.34,164.29,164.23,4.53020668]
[1749639108904,31.34,164.29,164.24,4.53027277]
[1749639109105,31.34,164.29,164.21,5.66268909]
[1749639109307,31.34,164.29,164.22,4.53046347]
[1749639109503,31.34,164.29,164.21,5.66268909]
[1749639109707,5.34,164.29,164.22,10.85382747]
[1749639109908,5.34,164.29,164.23,7.30708909]
[1749639110122,5.34,164.29,164.24,4.52988289]
[1749639110308,5.34,164.29,164.25,4.52988241]
[1749639110617,5.34,164.29,164.27,1.5214]
[1749639111119,5.34,164.29,164.28,4.52929362]
[1749639111413,5.34,164.36,164.28,4.5288587]
[1749639111619,31.34,164.36,164.29,4.52174387]
[1749639111809,31.34,164.36,164.3,4.52174336]
[1749639112123,31.34,164.36,164.27,1.5214]
[1749639112417,5.34,164.36,164.28,4.52172054]
[1749639112725,26.0,164.35,164.28,12.13238909]
[1749639112923,26.0,164.35,164.29,4.52127952]
[1749639113109,5.34,164.36,164.28,12.13238909]
[1749639113311,5.34,164.36,164.29,4.52127901]
[1749639113506,5.34,164.36,164.31,1.5598]
[1749639113825,5.34,164.36,164.31,7.22065976]
[1749639114023,5.34,164.36,164.32,4.52045799]
[1749639114208,5.34,164.36,164.33,4.52045666]
[1749639114517,5.34,164.36,164.31,7.22065976]
[1749639114724,5.34,164.36,164.32,4.52015232]
[1749639114899,5.34,164.36,164.33,4.52015182]
[1749639115097,5.34,164.36,164.34,4.52015131]
[1749639115311,5.34,164.36,164.31,7.22065976]
[1749639115312,5.34,164.36,164.35,4.52012998]
[1749639115504,5.34,164.36,164.35,4.52012835]
[1749639115723,5.34,164.36,164.31,7.22065976]
[1749639116120,5.34,164.36,164.32,4.52013039]
[1749639116323,5.34,164.36,164.31,7.22065976]
[1749639116923,23.98964886,164.43,164.33,6.2363]
[1749639117609,23.98964886,164.43,164.41,10.40976289]
[1749639121443,23.98964886,164.43,164.42,10.40976289]
[1749639122220,5.34,164.43,164.42,10.40976289]
[1749639124110,18.64964886,164.49,164.42,10.40976289]
[1749639124426,18.64964886,164.49,164.47,10.40976289]
[1749639124820,18.64964886,164.47,164.43,10.40976289]
[1749639125126,18.64964886,164.47,164.44,10.40976289]
[1749639125936,26.0,164.46,164.44,10.40976289]
[1749639128019,26.0,164.46,164.45,10.40976289]
[1749639132329,26.0,164.46,164.39,10.40976289]
[1749639132330,26.0,164.42,164.39,10.40976289]
[1749639132815,26.0,164.42,164.4,10.40976289]
[1749639133622,26.0,164.42,164.41,10.40976289]
[1749639133833,24.86,164.43,164.41,10.40976289]
[1749639134128,43.50964886,164.43,164.42,10.40976289]
[1749639134342,24.86,164.43,164.42,10.40976289]
[1749639134518,24.84,164.46,164.42,10.40976289]
[1749639134716,43.48964886,164.46,164.45,10.40976289]
[1749639135125,24.84,164.46,164.45,10.40976289]
[1749639135324,26.0,164.46,164.45,10.40976289]
[1749639135531,18.64964886,164.47,164.45,10.40976289]
[1749639135747,146.7,164.49,164.45,10.40976289]
[1749639135925,43.50964886,164.48,164.46,10.40976289]
[1749639136941,18.64964886,164.48,164.46,10.40976289]
[1749639137121,43.48964886,164.48,164.45,10.40976289]
[1749639137322,44.64964886,164.45,164.37,91.5255]
[1749639137529,18.64964886,164.43,164.4,10.40976289]
[1749639138827,18.64964886,164.43,164.37,1.6255]
[1749639139139,18.64964886,164.43,164.35,6.1396]
[1749639139140,18.64964886,164.39,164.35,10.40976289]
[1749639139338,18.64964886,164.37,164.33,10.40976289]
[1749639139639,24.88,164.36,164.33,10.40976289]
[1749639139944,24.88,164.36,164.34,10.40976289]
[1749639140120,24.88,164.36,164.35,10.40976289]
[1749639140521,26.0,164.38,164.35,10.40976289]
[1749639140716,26.0,164.38,164.37,10.40976289]
[1749639141044,26.0,164.38,164.35,10.40976289]
[1749639141424,26.0,164.38,164.36,10.40976289]
[1749639142046,26.0,164.38,164.35,10.40976289]
[1749639142341,26.0,164.38,164.36,10.40976289]
[1749639146054,26.0,164.38,164.35,10.40976289]
[1749639148151,24.9,164.39,164.37,10.40976289]
[1749639148348,5.34,164.4,164.36,10.40976289]
[1749639148349,30.2,164.4,164.36,10.40976289]
[1749639148730,30.2,164.4,164.35,10.40976289]
[1749639149433,29.05941175,164.39,164.34,10.40976289]
[1749639149753,18.64964886,164.39,164.35,10.40976289]
[1749639150857,18.64964886,164.39,164.34,10.40976289]
[1749639151032,29.05941175,164.39,164.34,10.40976289]
[1749639151350,29.05941175,164.39,164.33,10.40976289]
[1749639151547,29.05941175,164.39,164.32,10.40976289]
[1749639151548,10.40976289,164.37,164.32,10.40976289]
[1749639151748,35.26976289,164.37,164.32,10.40976289]
[1749639152143,29.05941175,164.36,164.31,10.40976289]
[1749639152655,29.05941175,164.36,164.29,1.643]
[1749639152656,18.64964886,164.36,164.32,10.40976289]
[1749639155936,24.86,164.37,164.34,10.40976289]
[1749639156146,24.86,164.37,164.35,10.40976289]
[1749639157648,24.86,164.37,164.34,10.40976289]
[1749639158238,18.64964886,164.38,164.34,10.40976289]
[1749639160955,15.74976289,164.4,164.35,10.40976289]
[1749639161143,48.84964886,164.4,164.35,10.40976289]
[1749639161658,26.0,164.38,164.37,10.40976289]
[1749639162161,48.84964886,164.4,164.36,10.40976289]
[1749639162355,48.84964886,164.4,164.37,10.40976289]
[1749639162569,48.84964886,164.4,164.36,10.40976289]
[1749639162858,18.64964886,164.36,164.32,10.40976289]
[1749639163055,18.64964886,164.36,164.33,4.53029761]
[1749639163244,18.64964886,164.36,164.34,4.53029761]
[1749639163442,18.64964886,164.36,164.32,10.40976289]
[1749639163653,18.64964886,164.36,164.33,4.53206206]
[1749639163855,18.64964886,164.36,164.32,10.40976289]
[1749639164054,18.64964886,164.36,164.33,4.53245154]
[1749639164357,18.64964886,164.36,164.32,10.40976289]
[1749639165069,29.05941175,164.36,164.31,10.40976289]
[1749639169349,29.05941175,164.36,164.3,12.02826289]
[1749639169566,29.05941175,164.36,164.31,10.40976289]
[1749639170567,18.64964886,164.36,164.32,10.40976289]
[1749639171444,29.05941175,164.36,164.31,10.40976289]
[1749639172551,18.64964886,164.36,164.32,10.40976289]
[1749639175456,29.05941175,164.36,164.31,10.40976289]
[1749639175671,18.64964886,164.36,164.32,10.40976289]
[1749639175867,18.64964886,164.36,164.33,10.40976289]
[1749639176575,24.86,164.37,164.33,10.40976289]
[1749639176872,24.86,164.37,164.32,10.40976289]
[1749639177071,24.86,164.37,164.33,10.40976289]
[1749639177969,24.86,164.37,164.34,4.54756505]
[1749639178267,15.74976289,164.4,164.35,14.95732794]
[1749639178475,26.0,164.37,164.36,14.95732794]
[1749639179162,26.0,164.37,164.36,4.54756505]
[1749639179552,26.0,164.37,164.36,4.54731017]
[1749639180158,26.0,164.37,164.36,4.54730942]
[1749639180965,10.40976289,164.48,164.36,4.54730942]
[1749639180966,5.34,164.46,164.36,16.53677231]
[1749639181160,18.64964886,164.41,164.37,4.54730942]
[1749639181470,18.64964886,164.41,164.38,4.54730942]
[1749639181670,24.86,164.42,164.39,4.54730942]
[1749639181876,24.86,164.42,164.4,4.54730942]
[1749639182061,24.86,164.42,164.41,4.54580008]
[1749639183156,54.06157332,164.42,164.41,4.54580008]
[1749639183504,18.79181043,164.41,164.36,11.98946289]
[1749639183676,10.40976289,164.37,164.32,12.06936289]
[1749639183879,53.89941175,164.37,164.33,4.54419223]
[1749639184064,10.55192446,164.36,164.34,4.54419223]
[1749639184378,29.20157332,164.36,164.35,4.54419223]
[1749639184584,29.20157332,164.36,164.31,10.40976289]
[1749639184760,29.20157332,164.36,164.32,4.54460537]
[1749639185079,26.0,164.34,164.33,4.54402411]
[1749639185260,26.0,164.34,164.33,4.54402462]
[1749639186073,26.0,164.34,164.33,4.54398053]
[1749639186264,26.0,164.34,164.32,10.40976289]
[1749639186584,26.0,164.34,164.33,9.08787839]
[1749639186772,80.04157332,164.34,164.33,9.08787839]
[1749639186964,80.04157332,164.34,164.33,9.08789172]
[1749639187164,80.04157332,164.34,164.33,9.08803966]
[1749639187380,69.63181043,164.34,164.33,9.08803966]
[1749639188190,69.63181043,164.34,164.33,4.5441418]
[1749639188488,69.63181043,164.34,164.33,4.54344802]
[1749639188679,69.63181043,164.34,164.3,10.40976289]
[1749639190760,69.63181043,164.34,164.29,10.40976289]
[1749639191883,69.63181043,164.34,164.3,10.40976289]
[1749639193077,69.63181043,164.34,164.28,5.64653914]
[1749639193078,80.04157332,164.34,164.29,10.40976289]
[1749639193878,29.20157332,164.33,164.27,5.64653914]
[1749639194069,35.26976289,164.32,164.27,10.40976289]
[1749639194665,35.26976289,164.32,164.28,4.54566736]
[1749639194882,35.26976289,164.32,164.29,4.54566736]
[1749639195088,35.26976289,164.32,164.26,10.40976289]
[1749639195089,29.20157332,164.31,164.26,10.40976289]
[1749639195274,29.20157332,164.31,164.27,4.54547979]
[1749639195275,24.86,164.3,164.27,4.54547979]
[1749639195477,24.86,164.3,164.28,4.54547979]
[1749639195785,43.65181043,164.3,164.29,4.54547979]
[1749639195988,43.65181043,164.3,164.26,10.40976289]
[1749639196189,43.65181043,164.3,164.27,4.54432364]
[1749639196486,43.65181043,164.3,164.28,4.54432364]
[1749639196682,43.65181043,164.3,164.27,10.40976289]
[1749639196888,43.65181043,164.3,164.28,4.54304503]
[1749639197067,43.65181043,164.3,164.29,4.54304503]
[1749639197667,26.0,164.33,164.29,14.95155846]
[1749639197973,26.0,164.32,164.31,10.40976289]
[1749639198178,26.0,164.32,164.31,14.95155846]
[1749639198379,165.34964886,164.36,164.31,14.95155846]
[1749639198582,165.34964886,164.36,164.34,10.40976289]
[1749639198788,24.88,164.36,164.34,10.40976289]
[1749639198980,24.88,164.36,164.35,4.54015694]
[1749639200291,24.86,164.37,164.35,4.54015694]
[1749639200489,24.86,164.37,164.36,4.54015694]
[1749639200698,26.0,164.37,164.36,4.54015694]
[1749639200884,50.9,164.37,164.36,4.54015694]
[1749639201290,50.9,164.37,164.36,14.94991983]
[1749639201600,24.9,164.37,164.36,14.94991983]
[1749639202391,5.34,164.41,164.36,14.94991983]
[1749639202594,24.92,164.4,164.38,10.40976289]
[1749639202803,24.92,164.4,164.39,10.40976289]
[1749639203695,24.92,164.4,164.35,6.4934]
[1749639203895,24.92,164.4,164.39,10.40976289]
[1749639206178,24.92,164.4,164.35,6.4934]
[1749639206375,24.92,164.4,164.38,10.40976289]
[1749639208002,24.92,164.4,164.39,4.53487798]
[1749639208200,24.92,164.4,164.39,14.94469301]
[1749639208576,24.92,164.4,164.39,10.40976289]
[1749639208793,24.92,164.4,164.39,14.94446999]
[1749639209004,24.92,164.4,164.39,10.40976289]
[1749639209205,24.92,164.4,164.39,19.47917709]
[1749639209494,30.22,164.41,164.39,19.47917709]
[1749639209697,30.22,164.41,164.4,4.53470659]
[1749639210092,30.22,164.41,164.4,4.53434764]
[1749639210306,30.22,164.41,164.39,10.40976289]
[1749639210684,30.22,164.41,164.4,4.53405899]
[1749639210893,30.22,164.41,164.39,10.40976289]
[1749639211295,30.22,164.41,164.4,4.53408007]
[1749639211607,30.22,164.41,164.4,4.53407956]
[1749639212004,30.22,164.41,164.39,10.40976289]
[1749639212686,30.22,164.41,164.4,10.40976289]
[1749639213908,5.34,164.41,164.4,10.40976289]
[1749639214089,30.2,164.41,164.4,14.94237663]
[1749639214290,30.2,164.41,164.4,10.40976289]
[1749639214483,30.2,164.41,164.4,14.94237663]
[1749639214684,30.2,164.41,164.4,10.40976289]
[1749639215410,30.2,164.41,164.4,14.94200132]
[1749639215998,30.2,164.41,164.4,14.94178877]
[1749639216203,30.2,164.41,164.4,19.47385679]
[1749639216395,30.2,164.41,164.4,19.47373038]
[1749639216712,30.2,164.41,164.4,14.94180984]
[1749639216900,30.2,164.41,164.4,19.47279244]
[1749639216901,30.18,164.41,164.4,19.47279244]
[1749639217105,30.18,164.41,164.4,19.47270817]
[1749639217284,30.18,164.41,164.4,19.47258883]
[1749639217483,30.18,164.41,164.4,10.40976289]
[1749639217687,30.18,164.41,164.4,14.94117586]
[1749639217913,30.18,164.41,164.4,14.94119692]
[1749639218081,5.34,164.41,164.4,19.47263095]
[1749639218288,30.18,164.41,164.4,19.47263095]
[1749639218503,30.18,164.41,164.4,14.94119692]
[1749639218703,30.18,164.41,164.4,19.47263095]
[1749639218889,30.18,164.41,164.4,14.9408216]
[1749639219089,30.18,164.41,164.4,19.47188031]
[1749639219602,30.18,164.41,164.4,14.9408216]
[1749639219792,5.34,164.41,164.4,19.47188031]
[1749639219994,5.34,164.41,164.4,14.93805306]
[1749639220308,5.34,164.41,164.4,34.40797199]
[1749639220615,5.34,164.41,164.4,34.40763511]
[1749639220815,5.34,164.41,164.4,29.87772553]
[1749639221046,5.34,164.41,164.4,34.40759037]
[1749639221393,5.34,164.41,164.4,29.87770316]
[1749639221594,5.34,164.41,164.4,29.87771062]
[1749639221795,5.34,164.41,164.4,23.99659538]
[1749639222414,5.34,164.41,164.4,19.46732422]
[1749639222619,5.34,164.41,164.4,19.46686778]
[1749639222824,5.34,164.41,164.4,14.93805306]
[1749639222994,5.34,164.41,164.4,23.9957246]
[1749639223192,5.34,164.41,164.4,19.46683972]
[1749639223390,5.34,164.41,164.4,23.99515733]
[1749639223603,5.34,164.41,164.4,23.99468798]
[1749639223801,5.34,164.41,164.4,23.99468809]
[1749639224003,5.34,164.41,164.4,14.93866593]
[1749639224207,5.34,164.41,164.4,19.46760546]
[1749639224408,5.34,164.41,164.4,19.46760545]
[1749639224602,5.34,164.41,164.4,14.93829331]
[1749639224913,5.34,164.41,164.4,19.46686228]
[1749639225117,5.34,164.41,164.4,14.93832237]
[1749639225314,5.34,164.41,164.4,19.46688185]
[1749639225507,5.34,164.41,164.4,19.46617597]
[1749639225703,5.34,164.41,164.4,10.40976289]
[1749639225908,5.34,164.41,164.4,19.46618343]
[1749639226305,5.34,164.41,164.4,19.46613365]
[1749639227118,5.34,164.41,164.4,19.46613391]
[1749639227325,5.34,164.41,164.4,19.46670691]
[1749639227497,5.34,164.41,164.4,19.46737901]
[1749639227822,5.34,164.41,164.4,14.93857095]
[1749639228121,5.34,164.41,164.4,19.46742113]
[1749639228321,5.34,164.41,164.4,19.46742858]
[1749639228521,5.34,164.41,164.4,10.40976289]
[1749639228720,5.34,164.41,164.4,14.93945535]
[1749639228918,5.34,164.41,164.4,10.40976289]
[1749639229120,5.34,164.41,164.4,14.93945535]
[1749639229314,5.34,164.41,164.4,4.52969246]
[1749639229510,5.34,164.41,164.4,4.52910256]
[1749639229707,5.34,164.41,164.4,9.05878176]
[1749639229910,5.34,164.41,164.4,14.93915377]
[1749639230435,5.34,164.41,164.4,14.93857946]
[1749639230804,5.34,164.41,164.4,10.40976289]
[1749639238414,5.34,164.41,164.38,1.617]
[1749639238616,5.34,164.41,164.4,10.40976289]
[1749639240131,24.13181043,164.43,164.4,10.40976289]
[1749639240334,24.13181043,164.43,164.38,1.617]
[1749639240536,27.28145733,164.43,164.4,10.40976289]
[1749639241432,27.28145733,164.43,164.41,4.5323853]
[1749639241730,27.28145733,164.43,164.4,10.40976289]
[1749639241934,27.28145733,164.43,164.41,4.53715814]
[1749639242113,8.4896469,164.43,164.42,9.06917212]
[1749639242314,5.34,164.43,164.42,24.02770833]
[1749639242524,5.34,164.43,164.42,24.02731151]
[1749639242721,34.39941175,164.43,164.42,13.6180424]
[1749639242928,18.79181043,164.42,164.38,10.40976289]
[1749639243228,24.84,164.41,164.39,9.08843468]
[1749639243432,24.84,164.41,164.4,13.63440267]
[1749639243628,24.84,164.41,164.4,13.63447515]
[1749639243934,24.84,164.41,164.4,13.63459089]
[1749639244341,24.84,164.41,164.4,9.08853017]
[1749639244519,24.84,164.41,164.4,13.64004375]
[1749639244713,24.84,164.41,164.4,4.54246945]
[1749639244932,24.84,164.41,164.4,13.64004375]
[1749639245140,24.84,164.41,164.4,9.0912566]
[1749639245312,43.63181043,164.41,164.4,9.09224007]
[1749639245513,86.1239284,164.41,164.4,13.64201069]
[1749639245736,26.0,164.38,164.34,10.40976289]
[1749639245929,26.0,164.38,164.35,13.64850026]
[1749639245930,24.84,164.37,164.35,13.64850026]
[1749639246118,24.84,164.37,164.36,4.54721308]
[1749639246318,43.63181043,164.37,164.36,9.09646557]
[1749639246520,43.63181043,164.37,164.36,4.54721308]
[1749639246722,43.63181043,164.37,164.36,13.64582289]
[1749639246928,43.63181043,164.37,164.36,9.09657048]
[1749639247319,43.63181043,164.37,164.36,13.64620004]
[1749639247945,49.71564567,164.37,164.36,9.09684264]
[1749639248146,26.0,164.34,164.3,1.542]
[1749639248443,24.84,164.33,164.31,14.954413]
[1749639248629,24.84,164.33,164.32,4.54465011]
[1749639250328,24.84,164.33,164.32,14.954413]
[1749639250635,44.79181043,164.37,164.32,14.954413]
[1749639250823,24.84,164.36,164.34,10.40976289]
[1749639251020,24.84,164.36,164.35,4.54465011]
[1749639252940,50.13181043,164.37,164.35,4.54465011]
[1749639253255,24.84,164.36,164.35,10.40976289]
[1749639253548,24.84,164.36,164.35,14.94737998]
[1749639254345,24.84,164.36,164.34,10.40976289]
[1749639255927,24.84,164.36,164.3,7.18853914]
[1749639256142,24.84,164.36,164.34,10.40976289]
[1749639257940,24.84,164.36,164.35,4.5401946]
[1749639258255,24.84,164.36,164.34,10.40976289]
[1749639258631,24.84,164.36,164.35,4.54018712]
[1749639258829,24.84,164.36,164.34,10.40976289]
[1749639259660,24.84,164.36,164.35,4.53386185]
[1749639263251,24.84,164.36,164.34,10.40976289]
[1749639264655,24.84,164.36,164.35,4.53233983]
[1749639264859,24.84,164.36,164.34,10.40976289]
[1749639265240,24.84,164.36,164.32,10.40976289]
[1749639265545,24.84,164.36,164.33,4.53246325]
[1749639265737,24.84,164.36,164.34,4.53246325]
[1749639265938,24.84,164.36,164.33,10.40976289]
[1749639266246,24.84,164.36,164.34,4.53290621]
[1749639266434,24.84,164.36,164.33,10.40976289]
[1749639266629,24.84,164.36,164.34,4.53333954]
[1749639266834,24.84,164.36,164.33,10.40976289]
[1749639267051,24.84,164.36,164.34,4.53333954]
[1749639267250,24.84,164.36,164.33,10.40976289]
[1749639267438,24.84,164.36,164.34,4.53329341]
[1749639267753,24.84,164.36,164.33,10.40976289]
[1749639267956,24.84,164.36,164.34,4.53404888]
[1749639268262,24.84,164.36,164.33,10.40976289]
[1749639268462,24.84,164.36,164.34,4.53397095]
[1749639268664,24.84,164.36,164.35,4.53397095]
[1749639271040,24.84,164.36,164.35,9.06643719]
[1749639271241,24.84,164.36,164.35,4.53397095]
[1749639271861,24.84,164.36,164.35,9.06980173]
[1749639272240,24.84,164.36,164.33,10.40976289]
[1749639272439,24.84,164.36,164.34,13.60820192]
[1749639272640,24.84,164.36,164.33,10.40976289]
[1749639272842,24.84,164.36,164.34,9.07230793]
[1749639273042,24.84,164.36,164.35,4.53641292]
[1749639273656,8.49158529,164.37,164.35,19.48190124]
[1749639273849,8.49158529,164.37,164.36,16.46667581]
[1749639273850,5.34,164.37,164.36,16.46667581]
[1749639274053,5.34,164.37,164.36,25.53567155]
[1749639274250,5.34,164.37,164.36,26.6475868]
[1749639274446,5.34,164.37,164.36,26.64758692]
[1749639274655,5.34,164.37,164.36,31.18193252]
[1749639274856,24.84,164.41,164.39,10.40976289]
[1749639275057,24.84,164.41,164.4,9.07056224]
[1749639275242,26.0,164.41,164.4,13.60454405]
[1749639275445,26.0,164.41,164.4,9.07048305]
[1749639275644,18.64964886,164.4,164.36,1.5205]
[1749639275844,24.84,164.39,164.37,19.48059988]
[1749639276068,24.84,164.39,164.38,13.60561174]
[1749639276365,24.84,164.39,164.38,13.60571544]
[1749639276565,24.84,164.39,164.38,9.07099405]
[1749639276761,24.84,164.39,164.38,9.0711731]
[1749639276969,24.84,164.39,164.38,9.0709485]
[1749639277471,24.84,164.39,164.38,9.07117831]
[1749639277642,24.84,164.39,164.38,9.07117775]
[1749639277842,24.84,164.39,164.37,10.40976289]
[1749639278045,24.84,164.39,164.38,4.5374871]
[1749639278654,24.84,164.39,164.35,10.40976289]
[1749639278855,24.84,164.39,164.36,9.07340298]
[1749639279161,24.84,164.39,164.35,10.40976289]
[1749639279359,24.84,164.39,164.36,4.53848324]
[1749639279560,24.84,164.39,164.37,4.55604148]
[1749639279757,54.04157332,164.39,164.38,4.55606356]
[1749639279969,54.04157332,164.39,164.38,4.55606305]
[1749639280168,43.63181043,164.39,164.38,4.55606305]
[1749639280364,43.63181043,164.39,164.35,10.40976289]